bitfinex/quotes_ETHUSD_20241217
["timestamp","ask_amount","ask_price","bid_price","bid_amount"]
[1734415528849,3.0812,4019.7,4019.5,3.0]
[1734415529050,3.0812,4019.7,4019.5,16.825741]
[1734415529261,3.0812,4019.7,4019.6,13.403073]
[1734415529455,3.0812,4019.7,4019.6,10.905292]
[1734415529755,3.0812,4019.7,4019.6,2.468921]
[1734415529961,3.0812,4019.7,4019.1,3.0]
[1734415530110,3.0812,4019.7,4019.3,3.0]
[1734415530309,3.0812,4019.7,4019.5,3.0]
[1734415530730,3.0812,4019.7,4018.7,4.02153024]
[1734415530928,3.0812,4019.7,4018.9,3.0]
[1734415531168,3.0812,4019.7,4019.0,46.406539]
[1734415531366,3.0812,4019.7,4019.1,3.0]
[1734415531582,4.6213,4019.7,4019.3,3.0]
[1734415531859,4.6213,4019.7,4019.4,2.07921]
[1734415532064,4.6213,4019.7,4019.3,3.0]
[1734415532272,3.1,4019.7,4019.5,3.06592003]
[1734415532427,3.1,4019.7,4019.4,0.06477469]
[1734415532622,3.1,4019.7,4018.6,4.02102898]
[1734415532623,3.1,4019.7,4019.6,0.06473281]
[1734415532865,3.1,4019.7,4019.6,3.0]
[1734415533025,3.1,4019.7,4019.6,5.91153781]
[1734415534768,4.744,4019.7,4019.6,5.91153781]
[1734415534965,6.294,4019.7,4019.6,5.91153781]
[1734415535765,6.294,4019.7,4019.6,0.06473281]
[1734415535973,6.294,4019.7,4018.5,1.02059792]
[1734415536182,6.294,4019.7,4018.7,3.0]
[1734415536348,6.294,4019.7,4018.9,3.0]
[1734415536663,6.294,4019.7,4018.5,1.02059792]
[1734415536664,6.294,4019.7,4019.1,3.0]
[1734415536889,6.294,4019.7,4019.3,3.0]
[1734415536890,2.31026943,4019.6,4019.3,3.0]
[1734415537031,2.31026943,4019.6,4019.4,4.340881]
[1734415537368,2.31026943,4019.6,4019.5,3.0]
[1734415537670,2.31026943,4019.6,4019.5,3.19373524]
[1734415537872,2.31026943,4019.6,4019.5,0.06529724]
[1734415537873,3.95426943,4019.6,4019.5,0.06529724]
[1734415538288,1.644,4019.5,4018.3,4.02047653]
[1734415538455,1.644,4019.5,4018.6,3.0]
[1734415538649,1.644,4019.5,4018.8,3.0]
[1734415538875,1.644,4019.5,4019.0,3.0]
[1734415539075,1.644,4019.5,4019.2,3.0]
[1734415539301,1.644,4019.5,4019.3,2.136641]
[1734415539450,1.644,4019.5,4019.3,0.06545667]
[1734415539787,1.644,4019.5,4018.3,3.0]
[1734415539987,1.644,4019.5,4019.4,0.06543573]
[1734415540188,1.644,4019.5,4018.3,3.0]
[1734415540384,1.644,4019.5,4018.5,3.0]
[1734415540601,1.644,4019.5,4018.7,3.0]
[1734415540798,1.644,4019.5,4018.9,3.0]
[1734415541009,1.644,4019.5,4019.1,3.0]
[1734415541010,4.974,4019.5,4019.1,3.0]
[1734415541306,4.974,4019.5,4019.3,3.0]
[1734415541484,4.974,4019.5,4019.2,3.06546782]
[1734415541684,6.524,4019.5,4019.4,0.06542593]
[1734415541884,6.524,4019.5,4018.2,4.89692805]
[1734415542075,6.524,4019.5,4018.3,50.472792]
[1734415542277,6.524,4019.5,4018.4,3.0]
[1734415542477,6.524,4019.5,4018.6,3.0]
[1734415542680,6.524,4019.5,4018.7,34.539002]
[1734415542864,6.524,4019.5,4018.8,31.167697]
[1734415543074,6.524,4019.5,4019.0,3.0]
[1734415543297,6.524,4019.5,4019.2,3.0]
[1734415543605,6.524,4019.5,4019.3,0.06537284]
[1734415543816,1.6458,4019.4,4019.3,0.06537284]
[1734415544030,1.6458,4019.4,4017.9,1.547]
[1734415544031,0.25,4019.3,4017.9,4.547]
[1734415544347,1.6458,4018.8,4017.6,5.84160458]
[1734415544530,2.31026943,4018.5,4018.0,0.06345484]
[1734415544680,2.31026943,4018.5,4017.9,40.971516]
[1734415544681,1.6458,4018.4,4018.1,9.633076]
[1734415544885,1.6063,4018.4,4018.1,0.06343388]
[1734415545068,1.6063,4018.4,4018.2,3.1318]
[1734415545271,1.6063,4018.4,4018.2,3.19525212]
[1734415545588,1.54446738,4018.4,4018.3,3.116241]
[1734415545769,1.54446738,4018.4,4018.3,6.17967216]
[1734415546020,1.54446738,4018.4,4018.3,14.05264816]
[1734415546331,1.54446738,4018.4,4018.3,14.37376116]
[1734415546483,1.54446738,4018.4,4018.3,14.05582016]
[1734415547420,1.55,4018.8,4018.5,1.6427]
[1734415547628,1.55,4018.8,4018.7,3.0]
[1734415547768,1.55,4018.8,4018.7,46.75137094]
[1734415547970,1.55,4018.8,4018.7,45.97003241]
[1734415548424,3.1,4018.8,4018.7,45.97003241]
[1734415549470,3.1,4018.8,4018.7,45.66949347]
[1734415550529,3.1,4018.8,4018.7,33.83817247]
[1734415550673,3.1,4018.8,4018.7,32.80984547]
[1734415551805,4.65,4018.8,4018.7,32.80984547]
[1734415552174,4.65,4018.8,4018.7,33.11038441]
[1734415554365,0.96915432,4018.8,4018.7,38.79609388]
[1734415554492,0.1373556,4018.8,4018.7,37.26558143]
[1734415554839,0.1373556,4018.8,4018.7,35.81687503]
[1734415555131,1.6873556,4018.8,4018.7,35.81687503]
[1734415555338,1.55792178,4018.8,4018.7,38.65654199]
[1734415555643,1.55792178,4018.8,4018.7,37.29481827]
[1734415555929,1.54872178,4018.8,4018.7,37.29481827]
[1734415556977,1.54872178,4018.8,4018.7,40.35915824]
[1734415557137,1.53722178,4018.8,4018.7,40.35915824]
[1734415557344,1.53722178,4018.8,4018.7,42.1072259]
[1734415557648,1.53722178,4018.8,4018.7,39.04288593]
[1734415558539,3.08722178,4018.8,4018.7,38.78838977]
[1734415559046,3.08722178,4018.8,4018.7,38.10884653]
[1734415559223,3.08722178,4018.8,4018.7,41.85331438]
[1734415559625,3.08722178,4018.8,4018.7,38.78773914]
[1734415561363,3.08722178,4018.8,4018.7,9.04196114]
[1734415561508,0.53106166,4018.8,4018.7,63.09276783]
[1734415561707,2.08106166,4018.8,4018.7,59.51475314]
[1734415562475,2.08106166,4018.8,4018.7,63.09276783]
[1734415563453,2.08106166,4018.8,4018.7,62.81863978]
[1734415565149,3.63106166,4018.8,4018.7,62.81863978]
[1734415565401,3.63106166,4018.8,4018.7,59.24062509]
[1734415565697,3.63106166,4018.8,4018.7,58.94008615]
[1734415565852,3.63106166,4018.8,4018.7,61.84895416]
[1734415566200,3.63106166,4018.8,4018.7,59.24058051]
[1734415566508,3.63106166,4018.8,4018.7,58.26119354]
[1734415566846,3.63106166,4018.8,4018.7,61.00280177]
[1734415567345,3.63106166,4018.8,4018.7,61.30334071]
[1734415568467,2.23684599,4018.8,4018.7,61.30334071]
[1734415568678,2.23684599,4018.8,4018.7,59.55527305]
[1734415569352,2.20874599,4018.8,4018.7,59.55527305]
[1734415569799,2.20874599,4018.8,4018.7,58.87642846]
[1734415570319,2.20874599,4018.8,4018.7,59.55517692]
[1734415570607,2.20874599,4018.8,4018.7,64.86224416]
[1734415570835,2.20874599,4018.8,4018.7,60.61869188]
[1734415570976,2.20874599,4018.8,4018.7,60.31815294]
[1734415571914,3.75874599,4018.8,4018.7,60.31815294]
[1734415572772,3.75874599,4018.8,4018.7,54.72022289]
[1734415573612,3.75874599,4018.8,4018.7,56.67128433]
[1734415573916,3.75874599,4018.8,4018.7,56.12128433]
[1734415574212,3.75874599,4018.8,4018.7,55.52752289]
[1734415574565,3.75874599,4018.8,4018.7,52.52752289]
[1734415575315,5.30874599,4018.8,4018.7,52.52752289]
[1734415576211,5.30874599,4018.8,4018.7,55.52752289]
[1734415577182,5.30874599,4018.8,4018.7,59.12173706]
[1734415577384,5.30874599,4018.8,4018.7,59.65698132]
[1734415577586,5.30874599,4018.8,4018.7,55.52752289]
[1734415577988,5.30874599,4018.8,4018.7,59.12173706]
[1734415578410,5.30874599,4018.8,4018.7,59.65710637]
[1734415578622,6.85874599,4018.8,4018.7,59.65710637]
[1734415578934,6.85874599,4018.8,4018.7,51.07620289]
[1734415581320,6.83994599,4018.8,4018.7,51.61196145]
[1734415581636,6.83994599,4018.8,4018.7,51.07620289]
[1734415582091,8.38994599,4018.8,4018.7,51.07620289]
[1734415582426,8.38994599,4018.8,4018.7,51.61204908]
[1734415582623,8.38994599,4018.8,4018.7,51.61204674]
[1734415582774,8.38994599,4018.8,4018.7,51.61203874]
[1734415583715,8.38994599,4018.8,4018.7,52.46257768]
[1734415583881,8.38994599,4018.8,4018.7,54.94488939]
[1734415584091,8.38994599,4018.8,4018.7,55.21901744]
[1734415584652,3.78952427,4018.8,4018.7,57.30958443]
[1734415584921,3.71630175,4018.8,4018.7,55.56732101]
[1734415585126,5.72529204,4019.5,4018.9,1.5477]
[1734415585337,3.24058362,4019.5,4019.3,0.55]
[1734415585627,3.24058362,4019.5,4019.4,56.71095036]
[1734415585792,3.17780233,4019.5,4019.4,57.69403626]
[1734415585990,0.63252584,4019.5,4019.4,57.69403626]
[1734415586321,0.63252584,4019.5,4019.4,59.99167414]
[1734415586528,1.5036492,4019.6,4019.5,3.7984]
[1734415586823,23.64929139,4019.7,4019.6,2.37076699]
[1734415586977,23.64929139,4019.7,4019.6,6.23205707]
[1734415586978,23.53603699,4019.7,4019.6,6.23205707]
[1734415587186,23.48129781,4019.7,4019.6,6.23205707]
[1734415587391,20.99693998,4019.7,4019.6,6.23205707]
[1734415587587,18.40787495,4019.7,4019.6,57.92080047]
[1734415588059,13.38849057,4019.7,4019.6,57.92080047]
[1734415588207,13.38849057,4019.7,4019.6,61.90018604]
[1734415588393,8.3707218,4019.7,4019.6,57.66630431]
[1734415588588,5.83922732,4019.7,4019.6,57.66630431]
[1734415588836,7.38922732,4019.7,4019.6,59.72954203]
[1734415589135,4.81370855,4019.7,4019.6,59.72954203]
[1734415589436,4.76602981,4019.7,4019.6,58.23954203]
[1734415589650,1.28119149,4019.7,4019.6,59.95870938]
[1734415589788,1.28119149,4019.7,4019.6,59.94449222]
[1734415590217,21.06387902,4019.8,4019.7,3.55]
[1734415590389,21.06387902,4019.8,4019.7,56.99754284]
[1734415590605,18.57947119,4019.8,4019.7,56.99754284]
[1734415590941,16.05555506,4019.8,4019.7,56.99754284]
[1734415591329,13.32,4019.8,4019.7,56.99754284]
[1734415591537,8.89721482,4019.8,4019.7,59.06090651]
[1734415591691,8.89721482,4019.8,4019.7,57.34173916]
[1734415592092,10.41154663,4019.8,4019.7,57.34173916]
[1734415592397,10.37706784,4019.8,4019.7,57.34173916]
[1734415592746,7.8602751,4019.8,4019.7,57.34173916]
[1734415592954,5.16417875,4019.8,4019.7,58.91683916]
[1734415593088,1.67921039,4019.8,4019.7,59.6981134]
[1734415593288,5.82454072,4019.9,4019.8,4.35103841]
[1734415593493,3.30989262,4019.9,4019.8,64.766473]
[1734415593789,1.5112,4021.0,4020.0,2.1251]
[1734415593993,1.5112,4021.0,4020.9,8.70817206]
[1734415594298,1.5112,4021.0,4020.9,55.62596062]
[1734415595367,3.0612,4021.0,4020.9,55.62596062]
[1734415595640,3.0612,4021.0,4020.9,54.05086062]
[1734415597811,0.54969493,4021.0,4020.9,54.34611882]
[1734415598013,10.85,4021.8,4020.9,57.92791571]
[1734415598264,10.85,4021.8,4021.7,6.1061689]
[1734415598427,10.85,4021.8,4021.7,56.8742191]
[1734415598636,10.85,4021.8,4021.7,54.04936984]
[1734415598637,12.4,4021.8,4021.7,54.04936984]
[1734415598979,12.4,4021.8,4021.7,54.34931966]
[1734415599182,13.9433,4021.8,4021.7,52.23177026]
[1734415599340,16.49943921,4021.8,4021.7,16.81317525]
[1734415600126,13.9433,4021.8,4021.7,16.81317525]
[1734415600354,13.9433,4021.8,4021.7,17.83544642]
[1734415600666,13.9433,4021.8,4021.7,16.81317525]
[1734415600967,13.9433,4021.8,4021.7,17.83544642]
[1734415601187,13.9433,4021.8,4021.7,16.30212601]
[1734415601345,13.9433,4021.8,4021.7,15.27985484]
[1734415602085,15.4933,4021.8,4021.7,15.27985484]
[1734415602645,18.04943921,4021.8,4021.7,15.27985484]
[1734415603593,18.04943921,4021.8,4021.7,3.33930384]
[1734415603743,13.95,4021.8,4021.7,3.88930384]
[1734415603943,13.95,4021.8,4021.7,9.04092593]
[1734415604144,13.95,4021.8,4021.7,6.73218762]
[1734415604379,9.35302254,4021.8,4021.7,6.73218762]
[1734415604578,9.35302254,4021.8,4021.7,3.41946162]
[1734415604883,9.35302254,4021.8,4021.7,56.89225362]
[1734415605285,10.90302254,4021.8,4021.7,59.44546378]
[1734415605446,10.90302254,4021.8,4021.7,59.69674783]
[1734415606194,10.90302254,4021.8,4021.7,57.14353767]
[1734415607881,10.90302254,4021.8,4021.7,59.18539636]
[1734415608086,10.90302254,4021.8,4021.7,57.14353767]
[1734415608282,10.90302254,4021.8,4021.7,56.88904151]
[1734415608506,10.90302254,4021.8,4021.7,56.38935746]
[1734415608659,10.90302254,4021.8,4021.7,57.92047139]
[1734415608660,12.45302254,4021.8,4021.7,57.92047139]
[1734415609006,12.45302254,4021.8,4021.7,54.34462804]
[1734415610365,12.45302254,4021.8,4021.7,54.04936984]
[1734415610562,12.45302254,4021.8,4021.7,53.49936984]
[1734415611267,12.45302254,4021.8,4021.7,54.52006644]
[1734415611615,12.45302254,4021.8,4021.7,53.49936984]
[1734415612103,14.00302254,4021.8,4021.7,53.49936984]
[1734415612663,13.95365254,4021.8,4021.7,53.49936984]
[1734415612889,13.88422254,4021.8,4021.7,53.49936984]
[1734415613085,13.88128821,4021.8,4021.7,53.49936984]
[1734415614111,13.88128821,4021.8,4021.7,54.5991242]
[1734415615304,15.43128821,4021.8,4021.7,54.5991242]
[1734415615508,15.43128821,4021.8,4021.7,55.61981318]
[1734415616034,15.42152821,4021.8,4021.7,55.61981318]
[1734415616220,15.41176821,4021.8,4021.7,55.61981318]
[1734415617350,15.41176821,4021.8,4021.7,57.21221318]
[1734415617540,15.41176821,4021.8,4021.7,57.72242998]
[1734415617702,15.41176821,4021.8,4021.7,58.19173416]
[1734415617893,15.41176821,4021.8,4021.7,56.66082838]
[1734415618436,10.81486003,4021.8,4021.7,58.70245654]
[1734415618599,12.36486003,4021.8,4021.7,58.9351327]
[1734415619030,12.36486003,4021.8,4021.7,60.23315401]
[1734415619219,12.36486003,4021.8,4021.7,58.70245654]
[1734415619423,12.36486003,4021.8,4021.7,56.66082838]
[1734415620200,12.36486003,4021.8,4021.7,56.8935073]
[1734415620601,12.36486003,4021.8,4021.7,58.93448562]
[1734415620807,12.36486003,4021.8,4021.7,58.44731054]
[1734415621155,12.36486003,4021.8,4021.7,56.40633222]
[1734415621814,12.36486003,4021.8,4021.7,56.63901549]
[1734415622011,13.91486003,4021.8,4021.7,58.68050301]
[1734415622343,13.91486003,4021.8,4021.7,56.63901549]
[1734415622754,13.88956003,4021.8,4021.7,58.68173192]
[1734415623038,13.88956003,4021.8,4021.7,55.04661549]
[1734415623244,13.88956003,4021.8,4021.7,57.08933192]
[1734415623626,12.88956003,4021.8,4021.7,59.36921213]
[1734415623810,11.49350889,4021.8,4021.7,57.3264957]
[1734415624430,11.49350889,4021.8,4021.7,60.39173355]
[1734415624744,11.49350889,4021.8,4021.7,57.09381243]
[1734415624951,11.49350889,4021.8,4021.7,60.1590855]
[1734415625254,11.49350889,4021.8,4021.7,57.09381243]
[1734415625443,13.04350889,4021.8,4021.7,57.3264624]
[1734415626056,13.04350889,4021.8,4021.7,60.39251072]
[1734415626353,13.04350889,4021.8,4021.7,57.3264624]
[1734415628252,13.04350889,4021.8,4021.7,60.90247923]
[1734415628552,13.04350889,4021.8,4021.7,60.90680806]
[1734415628720,14.59350889,4021.8,4021.7,60.90680806]
[1734415629240,14.59350889,4021.8,4021.7,59.19201225]
[1734415629578,14.59350889,4021.8,4021.7,57.3264624]
[1734415630723,13.59350889,4021.8,4021.7,57.3264624]
[1734415631116,13.59350889,4021.8,4021.7,59.19327577]
[1734415631763,13.59350889,4021.8,4021.7,63.42255909]
[1734415632263,15.14350889,4021.8,4021.7,63.42255909]
[1734415632491,15.14350889,4021.8,4021.7,59.19327577]
[1734415632830,15.14350889,4021.8,4021.7,57.07196624]
[1734415633023,15.14350889,4021.8,4021.7,58.94015269]
[1734415634049,13.74764643,4021.8,4021.7,58.94015269]
[1734415634662,13.74764643,4021.8,4021.7,56.83931627]
[1734415634827,13.72244643,4021.8,4021.7,58.90281789]
[1734415635145,13.72244643,4021.8,4021.7,54.51233222]
[1734415635349,13.72244643,4021.8,4021.7,58.10153384]
[1734415635660,15.27244643,4021.8,4021.7,54.26393222]
[1734415636586,15.27244643,4021.8,4021.7,54.81393222]
[1734415638756,15.27244643,4021.8,4021.7,56.68581395]
[1734415638941,16.82244643,4021.8,4021.7,54.81393222]
[1734415639480,16.82244643,4021.8,4021.7,53.89711339]
[1734415640111,16.82244643,4021.8,4021.7,50.30114222]
[1734415640315,16.82244643,4021.8,4021.7,53.89711339]
[1734415641278,16.82244643,4021.8,4021.7,51.64161919]
[1734415641481,16.82244643,4021.8,4021.7,48.26196819]
[1734415642280,19.98484643,4021.8,4021.7,22.43168401]
[1734415642486,19.98484643,4021.8,4021.7,20.72272701]
[1734415643017,19.98484643,4021.8,4021.7,20.69614917]
[1734415643376,19.98484643,4021.8,4021.7,19.59682517]
[1734415643577,19.98484643,4021.8,4021.7,20.94137098]
[1734415643916,19.98484643,4021.8,4021.7,18.88437517]
[1734415644091,22.54098564,4021.8,4021.7,9.69144165]
[1734415645507,22.54098564,4021.8,4021.7,9.70671287]
[1734415645706,24.09098564,4021.8,4021.7,9.70671287]
[1734415646782,24.09098564,4021.8,4021.7,7.62414687]
[1734415647187,24.09098564,4021.8,4021.7,6.59597117]
[1734415647406,21.53484643,4021.8,4021.7,15.97925787]
[1734415647566,21.53484643,4021.8,4021.7,16.83140387]
[1734415647770,21.53484643,4021.8,4021.7,14.91947387]
[1734415648187,21.47373238,4021.8,4021.7,14.91947387]
[1734415648442,21.46149583,4021.8,4021.7,14.91947387]
[1734415648774,21.46149583,4021.8,4021.7,14.91903056]
[1734415649109,21.46149583,4021.8,4021.7,13.89118617]
[1734415649110,23.01149583,4021.8,4021.7,13.89118617]
[1734415649337,23.01149583,4021.8,4021.7,14.91903056]
[1734415649812,23.01149583,4021.8,4021.7,10.295215]
[1734415650111,23.01149583,4021.8,4021.7,11.32305939]
[1734415650282,23.01149583,4021.8,4021.7,10.5904732]
[1734415650471,23.01149583,4021.8,4021.7,10.295215]
[1734415651810,24.75133338,4021.8,4021.7,7.011462]
[1734415652009,24.66463338,4021.8,4021.7,4.072817]
[1734415652215,26.21463338,4021.8,4021.7,3.0]
[1734415652527,1.5257,4021.7,4021.5,1.54177524]
[1734415652729,1.5257,4021.7,4021.6,5.556174]
[1734415653030,4.08183921,4021.7,4021.6,5.556174]
[1734415653889,3.92046423,4021.7,4021.5,4.54177524]
[1734415654092,1.5257,4021.6,4021.5,1.54177524]
[1734415654295,4.08183921,4021.6,4021.5,1.54177524]
[1734415654710,4.08183921,4021.6,4021.5,11.85095424]
[1734415654889,1.5257,4021.6,4021.5,14.83130424]
[1734415655144,1.5257,4021.6,4021.5,13.60942324]
[1734415655278,1.5257,4021.6,4021.5,7.36665924]
[1734415655632,3.0757,4021.6,4021.5,7.36665924]
[1734415657898,3.0757,4021.6,4021.5,7.39039932]
[1734415658993,4.6257,4021.6,4021.5,7.39039932]
[1734415659737,4.6257,4021.6,4021.5,5.84862408]
[1734415661126,7.18183921,4021.6,4021.5,0.02374008]
[1734415661449,1.5257,4021.5,4020.9,4.54108835]
[1734415661604,1.5257,4021.5,4021.1,3.0]
[1734415661796,1.5257,4021.5,4021.3,3.0]
[1734415661998,1.5257,4021.5,4021.4,8.611593]
[1734415662200,1.5257,4021.5,4021.4,8.800241]
[1734415662449,3.0757,4021.5,4021.4,8.82395632]
[1734415662594,3.0757,4021.5,4021.4,2.28965432]
[1734415663035,3.0757,4021.5,4021.4,2.265939]
[1734415663208,1.55,4021.5,4021.3,3.0]
[1734415663414,1.5257,4021.4,4021.1,3.0]
[1734415663739,1.5257,4021.4,4021.3,3.0]
[1734415663903,1.5257,4021.4,4021.0,3.0]
[1734415664292,1.5257,4021.4,4021.1,5.770562]
[1734415664497,1.5257,4021.4,4021.2,3.0]
[1734415664834,1.5257,4021.4,4020.9,1.54108835]
[1734415665034,1.5257,4021.4,4021.1,3.0]
[1734415665331,1.5257,4021.4,4020.9,1.54108835]
[1734415665543,1.5257,4021.4,4021.2,3.0]
[1734415665697,1.5257,4021.4,4020.9,1.54108835]
[1734415665898,1.6008,4021.3,4021.1,3.0]
[1734415666098,1.6008,4021.3,4020.9,1.54108835]
[1734415666338,1.6008,4021.3,4021.0,5.373378]
[1734415666512,1.6008,4021.3,4020.9,1.54108835]
[1734415666715,1.6008,4021.2,4020.9,1.54108835]
[1734415669043,2.31191038,4021.2,4020.9,1.54108835]
[1734415669242,0.25,4021.0,4020.9,1.54108835]
[1734415669400,1.8508,4021.0,4020.9,1.54108835]
[1734415669827,1.8508,4021.0,4019.9,1.32125012]
[1734415670057,1.6008,4020.8,4019.9,1.32125012]
[1734415670244,1.6008,4020.8,4020.0,0.02443293]
[1734415671906,1.6008,4020.7,4019.5,1.02640011]
[1734415672138,1.8508,4020.7,4019.6,0.02452266]
[1734415672510,1.6008,4020.3,4019.3,1.02640011]
[1734415672713,1.6008,4020.3,4019.4,0.02333591]
[1734415673246,3.33,4019.8,4019.4,0.31859411]
[1734415673542,3.33,4019.8,4019.6,3.0]
[1734415673702,3.33,4019.8,4019.7,26.53456162]
[1734415673903,4.9308,4019.8,4019.7,27.17250762]
[1734415674107,4.9308,4019.8,4019.7,26.22346262]
[1734415674645,4.9308,4019.8,4019.7,24.76908862]
[1734415675158,4.9308,4019.8,4019.7,15.14808962]
[1734415675501,4.9308,4019.8,4019.7,12.22298962]
[1734415675703,8.2608,4019.8,4019.7,8.60625362]
[1734415675902,9.7909,4019.8,4019.7,2.39599062]
[1734415679180,11.3409,4019.8,4019.7,2.39599062]
[1734415680252,11.3409,4019.8,4019.7,0.02334162]
[1734415680577,11.3409,4019.8,4019.3,3.0]
[1734415680786,11.3409,4019.8,4019.7,0.02345422]
[1734415680952,11.3409,4019.8,4019.7,3.0]
[1734415681281,11.3409,4019.8,4019.7,16.42461602]
[1734415681572,11.3409,4019.8,4019.7,18.22461602]
[1734415682335,11.3409,4019.8,4019.7,16.49891602]
[1734415682536,12.8909,4019.8,4019.7,14.83777602]
[1734415682848,12.8909,4019.8,4019.7,2.12662402]
[1734415685751,12.8909,4019.8,4019.7,0.02411502]
[1734415685964,14.38538104,4019.8,4018.9,4.02798034]
[1734415686166,1.509,4019.7,4018.9,1.02798034]
[1734415686561,1.509,4019.7,4018.8,1.02798034]
[1734415686888,1.509,4019.7,4018.7,1.54228851]
[1734415686889,2.31191038,4019.6,4018.7,2.57026885]
[1734415687182,2.31191038,4019.2,4018.7,1.54228851]
[1734415687477,1.509,4019.1,4018.4,1.02798034]
[1734415687654,1.509,4019.1,4018.5,4.116893]
[1734415687850,1.509,4019.1,4018.4,1.02798034]
[1734415688885,1.509,4019.1,4018.2,0.2952582]
[1734415689378,3.059,4019.1,4018.2,0.2952582]
[1734415689582,3.62109104,4019.1,4018.2,0.2952582]
[1734415690137,3.62109104,4019.1,4018.2,1.32449071]
[1734415690881,3.62109104,4019.1,4018.2,0.2952582]
[1734415692379,3.62109104,4019.1,4018.3,0.0246798]
[1734415692584,5.17109104,4019.1,4018.3,0.0246798]
[1734415694441,1.509,4019.0,4018.0,4.02923251]
[1734415694644,1.509,4019.0,4018.4,0.02538871]
[1734415694645,1.509,4018.9,4018.4,0.02538871]
[1734415694898,1.509,4018.9,4018.5,4.261782]
[1734415695102,1.509,4018.9,4018.5,0.02536776]
[1734415695325,1.6215,4018.7,4018.5,0.02536776]
[1734415695460,1.6215,4018.7,4017.7,4.02923251]
[1734415695884,3.1715,4018.7,4017.8,0.02551446]
[1734415696266,3.1715,4018.7,4018.0,3.0]
[1734415696506,3.1715,4018.7,4018.2,3.0]
[1734415696707,3.1715,4018.7,4018.4,3.0]
[1734415696866,3.1715,4018.7,4018.6,3.0]
[1734415697065,3.1715,4018.7,4018.6,7.864122]
[1734415697267,3.1715,4018.7,4018.6,7.2453308]
[1734415697695,3.1715,4018.7,4018.6,6.8565958]
[1734415697876,3.1715,4018.7,4018.6,6.5122168]
[1734415698078,3.48865,4018.7,4018.6,0.0253468]
[1734415698396,3.48865,4018.7,4017.8,1.32409186]
[1734415698595,3.1715,4018.7,4018.6,0.0253468]
[1734415698903,3.1715,4018.7,4017.8,1.32409186]
[1734415699260,4.7215,4018.7,4017.9,0.02547666]
[1734415700211,4.7215,4018.7,4018.0,49.93706466]
[1734415700419,4.7215,4018.7,4018.1,53.472792]
[1734415700717,4.7215,4018.7,4018.3,3.0]
[1734415700888,4.7215,4018.7,4018.5,3.0]
[1734415701218,4.7215,4018.7,4018.6,18.63284786]
[1734415701391,4.7215,4018.7,4018.6,19.10109686]
[1734415701591,4.7215,4018.7,4018.6,17.60099086]
[1734415702825,4.65,4018.7,4018.6,17.89624906]
[1734415703127,4.65,4018.7,4018.6,11.84989986]
[1734415703443,4.65,4018.7,4018.6,5.81837786]
[1734415703613,5.27715,4018.7,4018.6,0.02528786]
[1734415703920,6.71005211,4018.7,4018.6,0.02528786]
[1734415704104,6.71005211,4018.7,4018.1,1.02894415]
[1734415704419,6.71005211,4018.7,4018.2,0.02455666]
[1734415704923,6.71005211,4018.7,4017.9,1.02924537]
[1734415705092,6.71005211,4018.7,4018.3,0.02528383]
[1734415705302,6.71005211,4018.7,4017.9,1.02924537]
[1734415705619,6.08290211,4018.7,4018.0,1.02924537]
[1734415705784,6.08290211,4018.7,4018.0,1.05460049]
[1734415705978,6.08290211,4018.7,4018.2,3.0]
[1734415706179,7.63290211,4018.7,4018.4,3.0]
[1734415706379,7.63290211,4018.7,4018.6,3.0]
[1734415706616,7.63290211,4018.7,4018.6,0.02522939]
[1734415707092,7.63290211,4018.7,4018.0,1.02924537]
[1734415707624,7.63290211,4018.7,4018.1,0.02533417]
[1734415707831,1.6215,4018.6,4018.1,0.02533417]
[1734415707998,1.06882814,4018.4,4018.1,0.02533417]
[1734415708383,1.06882814,4018.4,4017.8,1.02924537]
[1734415708597,1.06882814,4018.4,4017.9,0.02542019]
[1734415708986,1.06882814,4018.4,4017.8,1.02924537]
[1734415709185,1.06882814,4018.4,4018.0,0.02539923]
[1734415709409,1.06882814,4018.4,4018.1,14.99533]
[1734415709612,2.61882814,4018.4,4018.2,3.0]
[1734415709999,1.55,4018.4,4018.3,7.56361838]
[1734415710300,1.55,4018.4,4018.3,3.41581438]
[1734415710503,1.55,4018.4,4018.3,6.41581438]
[1734415712843,3.1,4018.4,4018.3,6.41581438]
[1734415716207,4.65,4018.4,4018.3,6.41581438]
[1734415717253,6.2715,4018.4,4018.3,0.02543438]
[1734415717397,7.49979021,4018.4,4018.3,0.02543438]
[1734415717605,7.49979021,4018.4,4018.1,4.02924537]
[1734415717924,6.2715,4018.4,4018.2,0.02553812]
[1734415719609,7.8215,4018.4,4018.2,0.02553812]
[1734415720540,6.2,4018.4,4018.2,0.02553812]
[1734415720733,1.5373,4018.3,4018.0,1.02924537]
[1734415721081,1.5373,4018.3,4018.1,0.02300448]
[1734415721283,1.90261111,4018.2,4018.1,0.02300448]
[1734415721777,1.5373,4018.2,4017.9,1.02924537]
[1734415721926,1.5373,4018.2,4018.1,1.02924537]
[1734415722121,1.5373,4018.2,4018.1,1.05224985]
[1734415722912,3.0873,4018.2,4018.1,1.05224985]
[1734415724187,3.0873,4018.2,4018.1,11.97127285]
[1734415724378,3.0873,4018.2,4018.1,10.94202748]
[1734415725280,3.0873,4018.2,4018.1,10.29180148]
[1734415725593,3.0873,4018.2,4018.1,11.83979122]
[1734415725749,3.0873,4018.2,4018.1,10.29180148]
[1734415726078,3.0873,4018.2,4018.1,11.37149722]
[1734415726281,4.6373,4018.2,4018.1,9.82350748]
[1734415726460,4.6373,4018.2,4018.1,11.37149722]
[1734415727087,3.1,4018.2,4018.1,11.37149722]
[1734415727283,3.1,4018.2,4018.1,12.69928184]
[1734415727486,3.1,4018.2,4018.1,11.96566184]
[1734415727685,3.1,4018.2,4018.1,13.6820754]
[1734415729594,4.65,4018.2,4018.1,13.6820754]
[1734415729996,4.65,4018.2,4018.1,16.78062519]
[1734415730217,5.71850967,4018.2,4018.1,7.07800364]
[1734415730550,5.71850967,4018.2,4018.1,4.30306748]
[1734415730860,5.71850967,4018.2,4018.1,4.280063]
[1734415731056,5.71850967,4018.2,4018.1,1.5506723]
[1734415731306,5.71850967,4018.2,4018.0,2.06725615]
[1734415731507,5.71850967,4018.2,4018.1,1.55109019]
[1734415731818,7.27560967,4018.2,4018.1,1.55109019]
[1734415731998,7.27560967,4018.2,4018.1,1.03422791]
[1734415731999,8.52383571,4018.2,4018.1,1.03422791]